bitfinex-derivatives/quotes_ETHF0:USTF0_20260121
["timestamp","ask_amount","ask_price","bid_price","bid_amount"]
[1768965878420,0.00386355,2974.2,2973.5,0.00285469]
[1768965881030,0.14845828,2974.2,2973.5,0.00285469]
[1768965881235,0.14845828,2974.2,2972.7,3.47888906]
[1768965881732,0.14459473,2974.0,2972.7,2.39198891]
[1768965881922,0.31775801,2973.9,2972.6,1.972]
[1768965882231,0.14459473,2973.9,2972.6,1.9762966]
[1768965882432,0.16831,2974.1,2972.7,1.08690015]
[1768965882636,0.31762731,2974.0,2972.7,1.08690015]
[1768965882925,0.31290473,2974.1,2972.7,1.08690015]
[1768965883129,0.3176327,2974.0,2972.7,1.08690015]
[1768965883330,0.31290473,2974.1,2972.7,1.08690015]
[1768965883525,0.31753561,2974.0,2972.7,1.08690015]
[1768965883731,0.31290473,2974.1,2972.7,1.08690015]
[1768965884026,0.31753758,2974.0,2972.7,1.08690015]
[1768965884225,0.31290473,2974.1,2972.7,1.08690015]
[1768965886633,0.13937138,2974.0,2972.7,1.08690015]
[1768965900347,0.13937138,2974.0,2972.7,3.47888906]
[1768965900542,0.13937138,2974.0,2972.7,1.08690015]
[1768965906354,0.16831,2974.1,2973.0,1.22949988]
[1768965906558,0.00386355,2974.2,2973.0,1.22949988]
[1768965906855,0.16827,2974.7,2973.3,1.08690015]
[1768965907153,0.13937138,2974.8,2973.3,3.47888906]
[1768965907847,0.14346234,2974.8,2973.3,3.47888906]
[1768965908353,0.14346234,2974.8,2973.4,2.39198891]
[1768965909157,0.14346234,2974.8,2973.3,3.47888906]
[1768965910557,0.14346234,2974.8,2973.5,2.39198891]
[1768965911057,0.14346234,2974.8,2973.8,1.08695908]
[1768965912961,0.13937138,2974.4,2973.4,1.08695908]
[1768965913162,0.13937138,2974.4,2973.3,2.39198891]
[1768965913360,0.13937138,2974.4,2973.5,1.08695908]
[1768965914956,0.13937138,2974.4,2973.3,2.39198891]
[1768965915162,0.13937138,2974.4,2973.2,3.47894799]
[1768965915563,0.13937138,2974.4,2973.4,1.08695908]
[1768965924372,0.13937138,2974.4,2973.2,1.08695908]
[1768965927777,0.13937138,2974.4,2973.4,1.08695908]
[1768965929373,1.22993374,2974.3,2973.2,2.39198891]
[1768965929577,0.14297466,2974.2,2973.2,2.39198891]
[1768965930378,0.14297466,2974.2,2973.3,1.08695908]
[1768965931374,0.14297466,2974.2,2973.3,3.47894799]
[1768965932279,0.14297466,2974.2,2973.0,2.39198891]
[1768965932480,0.14297466,2974.2,2972.9,3.47894799]
[1768965932975,0.14297466,2974.2,2972.9,1.08695908]
[1768965934281,0.14297466,2974.2,2973.1,1.08695908]
[1768965936581,0.14297466,2974.2,2973.3,1.08695908]
[1768965937581,0.16829,2974.4,2973.5,1.08695908]
[1768965937779,0.31667962,2974.3,2973.5,1.08695908]
[1768965937982,0.16829,2974.4,2973.5,1.08695908]
[1768965938282,0.31668214,2974.3,2973.5,1.08695908]
[1768965938482,0.16829,2974.4,2973.5,1.08695908]
[1768965938682,0.31668556,2974.3,2973.5,1.08695908]
[1768965938884,0.16829,2974.4,2973.5,1.08695908]
[1768965939087,0.31668502,2974.3,2973.5,1.08695908]
[1768965939390,0.16829,2974.4,2973.5,1.08695908]
[1768965939582,0.31670293,2974.3,2973.5,1.08695908]
[1768965939781,0.16829,2974.4,2973.5,1.08695908]
[1768965939990,0.31669914,2974.3,2973.3,1.08695908]
[1768965940190,0.16829,2974.4,2973.3,1.08695908]
[1768965940389,0.31671377,2974.3,2973.3,1.08695908]
[1768965940594,0.14297466,2974.2,2973.1,1.08695908]
[1768965942589,0.4597055,2974.1,2973.1,1.08695908]
[1768965942782,0.14297466,2974.1,2973.1,1.08695908]
[1768965954996,0.16076681,2973.8,2972.7,2.39198891]
[1768965955195,0.16076681,2973.8,2972.8,1.08695908]
[1768965955394,0.16076681,2973.8,2973.0,1.08695908]
[1768965956501,0.32906681,2974.2,2973.2,1.08695908]
[1768965956700,0.31672171,2974.1,2973.2,1.08695908]
[1768965956900,0.31672171,2974.0,2973.2,1.08695908]
[1768965957103,0.32906681,2974.2,2973.2,1.08695908]
[1768965957302,0.31673496,2974.1,2973.2,1.08695908]
[1768965957503,0.31673496,2974.0,2973.2,1.08695908]
[1768965957702,1.41602589,2974.2,2973.0,1.08695908]
[1768965957902,0.31673008,2974.1,2973.0,1.08695908]
[1768965958199,0.31673008,2974.0,2973.0,1.08695908]
[1768965958400,1.41602589,2974.2,2973.0,1.08695908]
[1768965958602,0.3167572,2974.1,2973.0,1.08695908]
[1768965958903,0.3167572,2974.0,2973.0,1.08695908]
[1768965959105,1.41602589,2974.2,2973.0,1.08695908]
[1768965959306,0.316786,2974.1,2973.0,1.08695908]
[1768965959603,0.316786,2974.0,2973.0,1.08695908]
[1768965959809,0.32906681,2974.2,2973.0,1.08695908]
[1768965960010,0.31678589,2974.1,2973.0,1.08695908]
[1768965960210,0.31678589,2974.0,2973.0,1.08695908]
[1768965960413,0.32906681,2974.2,2973.0,1.08695908]
[1768965960608,0.31682518,2974.1,2973.0,1.08695908]
[1768965960912,0.31682518,2974.0,2973.0,1.08695908]
[1768965961116,0.32906681,2974.2,2973.2,1.08695908]
[1768965961413,0.31686906,2974.1,2973.2,1.08695908]
[1768965961608,0.31686906,2974.0,2973.2,1.08695908]
[1768965961910,0.32906681,2974.2,2973.2,1.08695908]
[1768965962114,0.31687214,2974.1,2973.2,1.08695908]
[1768965962413,0.32906681,2974.2,2973.2,1.08695908]
[1768965962414,0.31687214,2974.0,2973.2,1.08695908]
[1768965962612,0.32906681,2974.2,2973.2,1.08695908]
[1768965962804,0.31693633,2974.1,2973.2,1.08695908]
[1768965963113,0.31693633,2974.0,2973.2,1.08695908]
[1768965963308,0.32906681,2974.2,2973.2,1.08695908]
[1768965963508,0.31694408,2974.1,2973.2,1.08695908]
[1768965963712,0.31694408,2974.0,2973.0,1.08695908]
[1768965963912,0.32906681,2974.2,2973.0,1.08695908]
[1768965964212,0.31694408,2974.1,2973.0,1.08695908]
[1768965964407,0.31694408,2974.0,2973.0,1.08695908]
[1768965964610,1.24772589,2974.1,2973.0,1.08695908]
[1768965964814,0.31285362,2974.0,2973.0,1.08695908]
[1768965965014,0.31285362,2973.9,2973.0,1.08695908]
[1768965965210,1.24772589,2974.1,2973.0,1.08695908]
[1768965965416,0.31286049,2974.0,2973.0,1.08695908]
[1768965965614,0.31286049,2973.9,2973.0,1.08695908]
[1768965965817,1.24772589,2974.1,2973.0,3.47894799]
[1768965966017,0.31285981,2974.0,2972.9,2.39198891]
[1768965966216,1.24772589,2974.1,2973.0,2.39198891]
[1768965966217,0.31285981,2973.9,2973.0,2.39198891]
[1768965966418,1.24772589,2974.1,2973.0,2.39198891]
[1768965966614,0.31287232,2974.0,2972.9,2.39198891]
[1768965966815,0.16076681,2973.8,2972.9,2.39198891]
[1768965967115,0.16076681,2973.8,2972.8,2.39198891]
[1768965967515,0.16076681,2973.8,2972.8,3.47894799]
[1768965969520,0.16076681,2973.8,2972.8,2.39198891]
[1768965969816,0.31288283,2973.7,2972.8,2.39198891]
[1768965970021,0.16076681,2973.8,2972.8,2.39198891]
[1768965970217,0.31288474,2973.7,2972.8,2.39198891]
[1768965970410,0.16076681,2973.8,2972.8,2.39198891]
[1768965970614,0.31289385,2973.7,2972.8,2.39198891]
[1768965970822,0.16076681,2973.8,2972.8,2.39198891]
[1768965971121,0.3128939,2973.7,2972.8,2.39198891]
[1768965971313,0.16076681,2973.8,2972.8,2.39198891]
[1768965971514,0.31287881,2973.7,2972.8,2.39198891]
[1768965971714,0.16076681,2973.8,2972.8,2.39198891]
[1768965972012,0.31287881,2973.7,2972.8,2.39198891]
[1768965972212,0.16076681,2973.8,2972.8,2.39198891]
[1768965973514,0.16076681,2973.8,2972.7,2.39198891]
[1768965977832,0.16076681,2973.8,2972.8,2.39198891]
[1768965979530,0.15299765,2973.5,2972.6,0.0042966]
[1768965984236,0.15299765,2973.3,2971.7,2.39198891]
[1768965984436,0.46566332,2973.2,2971.6,2.39198891]
[1768965984630,0.15299765,2973.2,2971.6,2.39198891]
[1768965985243,0.15299765,2973.2,2971.6,2.39496743]
[1768965985539,0.32135765,2973.2,2971.6,2.39496743]
[1768965986338,0.32135765,2973.2,2971.6,1.09077136]
[1768965986540,0.15299765,2973.6,2971.9,1.1273008]
[1768965986840,0.15299765,2973.4,2971.9,1.1273008]
[1768965990242,0.15299765,2973.4,2971.9,1.08779284]
[1768965994152,0.15299765,2973.4,2971.9,3.47978175]
[1768966000148,0.46524547,2973.3,2971.9,3.47978175]
[1768966000349,0.15299765,2973.3,2971.9,3.47978175]
[1768966004449,0.15299765,2973.3,2972.0,2.39198891]
[1768966006349,0.31254266,2973.2,2972.0,2.39198891]
[1768966006550,0.15299765,2973.3,2972.0,2.39198891]
[1768966006743,0.31254266,2973.2,2972.0,2.39198891]
[1768966006946,0.15299765,2973.3,2972.0,2.39198891]
[1768966007144,0.31254266,2973.2,2972.0,2.39198891]
[1768966007344,0.15299765,2973.3,2972.0,2.39198891]
[1768966007650,0.3126258,2973.2,2972.0,2.39198891]
[1768966007838,0.15299765,2973.3,2972.0,2.39198891]
[1768966008042,0.3126258,2973.2,2972.0,2.39198891]
[1768966008243,0.15299765,2973.3,2972.0,2.39198891]
[1768966008439,0.3126258,2973.2,2972.0,2.39198891]
[1768966008643,0.15299765,2973.3,2972.0,2.39198891]
[1768966008843,0.31273222,2973.2,2972.0,2.39198891]
[1768966009050,0.15299765,2973.3,2972.0,2.39198891]
[1768966009351,0.31273439,2973.2,2972.1,2.39198891]
[1768966009547,0.31273439,2973.1,2972.1,2.39198891]
[1768966009851,0.15299765,2973.3,2972.1,2.39198891]
[1768966010047,0.31288035,2973.2,2972.1,2.39198891]
[1768966010249,0.31288035,2973.1,2972.1,2.39198891]
[1768966010551,0.15299765,2973.3,2972.1,2.39198891]
[1768966010746,0.31292399,2973.2,2972.1,2.39198891]
[1768966010944,0.31292399,2973.1,2972.1,2.39198891]
[1768966011143,0.15299765,2973.3,2972.1,2.39198891]
[1768966011340,0.31292399,2973.2,2972.1,2.39198891]
[1768966011544,0.31292399,2973.1,2972.1,2.39198891]
[1768966011740,0.15299765,2973.3,2972.1,2.39198891]
[1768966011941,0.31297493,2973.2,2972.1,2.39198891]
[1768966012147,0.15299765,2973.3,2972.1,2.39198891]
[1768966012350,0.16155034,2973.1,2972.1,2.39198891]
[1768966012550,0.31297364,2973.0,2972.1,2.39198891]
[1768966017454,0.16155034,2973.1,2972.1,2.39198891]
[1768966017653,0.31319296,2973.0,2972.1,2.39198891]
[1768966017854,0.16155034,2973.1,2972.1,2.39198891]
[1768966018154,0.31319323,2973.0,2972.1,2.39198891]
[1768966018355,0.16155034,2973.1,2972.1,2.39198891]
[1768966018552,0.31318739,2973.0,2972.1,2.39198891]
[1768966018758,0.16155034,2973.1,2972.1,2.39198891]
[1768966018954,0.16155034,2972.9,2972.0,2.39198891]
[1768966019153,0.16155034,2972.7,2971.7,2.39198891]
[1768966019355,0.16493224,2972.7,2971.6,0.00297852]
[1768966019555,0.16155034,2972.5,2971.6,0.00297852]
[1768966019763,0.16839,2972.6,2970.9,13.36390144]
[1768966019764,0.16155034,2972.1,2970.9,4.18598059]
[1768966019954,0.16155034,2972.1,2970.7,2.39198891]
[1768966020659,0.16155034,2971.9,2970.5,2.39198891]
[1768966020958,0.16155034,2971.7,2970.5,0.00343403]
[1768966021161,0.16155034,2971.5,2970.5,0.00343403]
[1768966027764,0.16155034,2971.4,2970.5,0.00343403]
[1768966028967,0.33001034,2971.4,2970.5,0.00343403]
[1768966030873,0.16155034,2971.3,2970.5,0.00343403]
[1768966032259,0.16155034,2971.7,2970.5,0.00343403]
[1768966032468,0.16843,2972.0,2970.7,1.08779284]
[1768966032769,0.16155034,2972.1,2970.7,1.08779284]
[1768966032961,0.16155034,2972.1,2970.8,1.08890962]
[1768966033157,1.25045996,2972.0,2970.8,1.08890962]
[1768966033361,0.16155034,2971.9,2970.8,1.08890962]
[1768966034074,1.25045996,2971.8,2970.6,1.08890962]
[1768966034271,0.16155034,2971.7,2970.5,0.00343403]
[1768966034574,0.16155034,2971.7,2970.7,1.08890962]
[1768966035376,0.16155034,2971.7,2970.5,1.09234365]
[1768966035769,1.25931402,2971.6,2970.5,1.09234365]
[1768966039574,0.1704044,2972.0,2971.1,1.08890962]
[1768966039777,0.3388144,2972.3,2971.1,1.08890962]
[1768966039976,1.25931402,2972.2,2971.1,1.08890962]
[1768966040576,1.25931402,2972.2,2970.5,0.00343403]
[1768966040577,0.1704044,2972.1,2970.9,1.08890962]
[1768966041379,0.16841,2972.3,2971.3,1.08890962]
[1768966041884,0.1704044,2972.5,2971.5,1.08890962]
[1768966042972,0.0033819,2972.7,2972.2,1.08890962]
[1768966043171,0.1704044,2972.9,2972.2,1.08890962]
[1768966043375,0.1704044,2972.9,2972.0,1.08890962]
[1768966044081,0.17347472,2972.9,2972.0,1.08890962]
[1768966044579,0.17347472,2972.9,2971.8,1.08890962]
[1768966046080,0.17347472,2972.9,2972.0,1.08890962]
[1768966053683,0.00307032,2972.9,2972.2,1.08890962]
[1768966054189,0.16836,2973.2,2972.4,1.08890962]
[1768966055090,0.1707844,2973.2,2972.4,1.08890962]
[1768966056592,0.1707844,2973.2,2972.2,1.08890962]
[1768966060295,1.25931402,2972.9,2971.7,1.08890962]
[1768966060597,0.1704044,2972.9,2971.7,1.08890962]
[1768966060781,0.1704044,2972.9,2971.9,1.08890962]
[1768966071200,0.1704044,2972.9,2971.9,3.48089853]
[1768966072200,0.1704044,2972.9,2972.0,2.39198891]
[1768966072907,0.1707844,2973.2,2972.3,1.08890962]
[1768966073200,0.31297411,2973.1,2972.3,1.08890962]
[1768966073404,0.1707844,2973.2,2972.3,1.08890962]
[1768966073703,0.31296187,2973.1,2972.3,1.08890962]
[1768966073903,0.34587834,2973.2,2972.3,1.08890962]
[1768966074106,0.3129614,2973.1,2972.3,1.08890962]
[1768966074303,0.34587834,2973.2,2972.3,1.08890962]
[1768966074602,0.31296073,2973.1,2972.3,1.08890962]
[1768966074802,0.34587834,2973.2,2972.3,1.08890962]
[1768966075001,0.3129678,2973.1,2972.3,1.08890962]
[1768966075201,0.34587834,2973.2,2972.3,1.08890962]
[1768966075406,0.31296775,2973.1,2972.3,1.08890962]
[1768966075705,0.34587834,2973.2,2972.3,1.08890962]
[1768966075905,0.31297757,2973.1,2972.3,1.08890962]
[1768966076098,0.34587834,2973.2,2972.3,1.08890962]
[1768966076300,0.31297756,2973.1,2972.3,1.08890962]
[1768966076500,0.34587834,2973.2,2972.3,1.08890962]
[1768966076694,0.31298816,2973.1,2972.3,1.08890962]
[1768966076901,0.34587834,2973.2,2972.3,1.08890962]
[1768966077102,0.31298671,2973.1,2972.3,1.08890962]
[1768966077306,0.34587834,2973.2,2972.3,1.08890962]
[1768966077606,0.31300225,2973.1,2972.3,1.08890962]
[1768966077808,0.34587834,2973.2,2972.3,1.08890962]
[1768966078008,0.31300214,2973.1,2972.3,1.08890962]
[1768966078306,0.0024244,2973.2,2972.7,1.08890962]
[1768966078508,0.17509394,2973.6,2972.5,1.08890962]
[1768966078708,1.3540665,2973.5,2972.5,1.08890962]
[1768966078909,1.3540665,2973.4,2972.3,1.08890962]
[1768966079210,0.31299385,2973.3,2972.3,1.08890962]
[1768966079512,0.0041027,2973.3,2972.3,1.09146448]
[1768966080405,0.17919664,2973.3,2972.3,1.09146448]
[1768966084320,1.08890962,2973.1,2972.3,0.00255486]
[1768966084513,1.26400356,2973.1,2972.3,0.00255486]
[1768966085118,0.17509394,2973.1,2972.3,0.00255486]
[1768966097919,0.0041027,2973.3,2972.3,0.00255486]
[1768966098125,0.0041027,2973.3,2972.3,2.39454377]
[1768966098921,0.1685696,2973.3,2972.3,2.39454377]
[1768966099520,0.0041027,2973.3,2972.4,2.39198891]
[1768966099720,0.0041027,2973.3,2972.5,2.39198891]
[1768966104829,0.0041027,2973.3,2972.6,2.39198891]
[1768966107235,0.0041027,2973.3,2972.5,2.39198891]
[1768966116135,0.3327769,2974.0,2972.5,2.39198891]
[1768966116334,0.31244107,2973.9,2972.5,2.39198891]
[1768966116535,0.3327769,2974.0,2972.5,2.39198891]
[1768966116729,0.47690199,2973.9,2972.5,2.39198891]
[1768966116930,0.16755009,2973.9,2972.5,2.39198891]
[1768966117732,0.16755009,2973.9,2972.6,2.39198891]
[1768966124442,0.16755009,2973.9,2972.7,2.39198891]
[1768966128245,0.31278905,2973.8,2972.7,2.39198891]
[1768966128437,0.16755009,2973.9,2972.7,2.39198891]
[1768966128637,0.31278911,2973.8,2972.7,2.39198891]
[1768966128838,0.16755009,2973.9,2972.7,2.39198891]
[1768966129039,0.31278911,2973.8,2972.7,2.39198891]
[1768966129240,0.16755009,2973.9,2972.8,2.39198891]
[1768966129442,0.31287596,2973.8,2972.8,2.39198891]
[1768966129741,0.16755009,2973.9,2972.8,2.39198891]
[1768966129936,0.31287596,2973.8,2972.8,2.39198891]
[1768966130144,0.16755009,2973.9,2972.8,2.39198891]
[1768966130343,0.48916985,2973.8,2972.8,2.39198891]
[1768966130543,0.17628114,2973.8,2972.8,2.39198891]
[1768966135561,0.17628114,2973.8,2972.9,2.39198891]
[1768966137362,0.00308319,2973.9,2972.9,2.39198891]
[1768966144774,0.31292712,2973.8,2972.9,2.39198891]
[1768966145069,0.00308319,2973.9,2972.9,2.39198891]
[1768966145270,0.31294283,2973.8,2972.9,2.39198891]
[1768966145470,0.00308319,2973.9,2972.9,2.39198891]
[1768966145668,0.17628114,2973.7,2972.8,2.39198891]
[1768966145860,0.48921723,2973.6,2972.7,2.39198891]
[1768966146065,0.17628114,2973.6,2972.7,2.39198891]
[1768966149782,0.17628114,2973.6,2972.6,2.39198891]
[1768966152590,0.16833,2973.8,2972.7,2.39198891]
[1768966152778,0.31294013,2973.7,2972.7,2.39198891]
[1768966152978,0.31294013,2973.6,2972.7,2.39198891]
[1768966153276,1.26406076,2973.7,2972.7,2.39198891]
[1768966153477,0.31293603,2973.6,2972.6,2.39198891]
[1768966153682,1.26406076,2973.7,2972.6,2.39198891]
[1768966153882,0.31293977,2973.6,2972.7,2.39198891]
[1768966154185,1.26406076,2973.7,2972.7,2.39198891]
[1768966154377,0.31293608,2973.6,2972.7,2.39198891]
[1768966154573,1.26406076,2973.7,2972.7,2.39198891]
[1768966157087,1.26406076,2973.7,2972.6,2.39198891]
[1768966157978,1.26406076,2973.7,2972.7,2.39198891]
[1768966163894,0.16827487,2973.5,2972.6,2.39198891]
[1768966165194,0.16827487,2973.5,2972.5,3.47976853]
[1768966166087,0.16827487,2973.5,2972.6,2.39198891]
[1768966167290,0.16827487,2973.5,2972.5,3.47976853]
[1768966167491,0.16827487,2973.5,2972.6,2.39198891]
[1768966169896,0.16827487,2973.0,2972.4,2.39198891]
[1768966170097,1.08777962,2973.3,2972.4,2.39198891]
[1768966171192,1.08777962,2973.3,2972.3,2.39454377]
[1768966171392,1.08777962,2973.3,2972.4,2.39198891]
[1768966172095,1.08777962,2973.3,2972.3,2.39454377]
[1768966174696,1.08777962,2973.3,2972.3,0.00255486]
[1768966175298,1.08777962,2973.3,2972.3,2.41264032]
[1768966190706,1.25748635,2973.3,2972.3,2.41264032]
[1768966191208,1.25748635,2973.3,2972.4,2.41008546]
[1768966202008,0.16970673,2973.3,2972.4,2.41008546]
[1768966202508,0.16970673,2973.1,2972.4,2.41008546]
[1768966204212,0.33807673,2973.1,2972.4,2.41008546]
[1768966204418,0.16970673,2972.7,2972.3,0.00255486]
[1768966204716,1.25615962,2972.8,2971.7,1.08777962]
[1768966205517,1.25615962,2972.8,2971.6,1.08777962]
[1768966205718,1.25615962,2972.8,2971.6,1.0905309]
[1768966206118,1.42586635,2972.8,2971.6,1.0905309]
[1768966212734,0.16970673,2972.5,2971.6,0.00275128]
[1768966212926,0.16970673,2972.3,2971.6,0.00275128]
[1768966240043,0.17378305,2972.8,2971.6,0.00275128]
[1768966240243,0.17378305,2972.6,2971.6,0.00275128]
[1768966243450,0.47851094,2972.5,2971.6,0.00275128]
[1768966243753,0.16842,2972.1,2970.5,3.368]
[1768966244246,0.17378305,2972.0,2970.5,3.368]
[1768966244652,0.17378305,2972.0,2970.5,3.3723218]
[1768966245251,0.17246994,2971.7,2970.5,0.0043218]
[1768966245555,0.17569217,2971.7,2970.5,0.0043218]
[1768966246547,0.16560955,2971.6,2970.5,0.0043218]
[1768966255055,0.16560955,2971.6,2970.5,1.09310294]
[1768966256055,0.16560955,2972.0,2970.8,1.08878114]
[1768966256256,0.16560955,2972.4,2971.1,1.08878114]
[1768966257549,0.16865449,2972.4,2971.1,1.08878114]
[1768966261857,4.567,2973.5,2971.8,1.08878114]
[1768966261858,0.16560955,2972.8,2971.8,1.08878114]
[1768966262854,0.1693922,2972.8,2971.8,1.08878114]
[1768966264969,0.00378265,2972.8,2971.8,1.08878114]
[1768966267569,0.16560955,2973.2,2972.1,1.08878114]
[1768966268668,0.16809884,2973.2,2972.1,1.08878114]
[1768966269363,0.16809884,2973.2,2971.9,0.16843]
[1768966269669,0.16809884,2973.2,2971.4,4.10138796]
[1768966270464,0.16560955,2973.1,2971.3,3.18106682]
[1768966270665,0.16560955,2973.1,2971.3,0.16846]
[1768966276875,0.16559897,2972.9,2971.7,1.08844997]
[1768966278663,0.17084929,2973.2,2971.3,0.16846]
[1768966278664,0.16559897,2972.7,2971.5,1.08844997]
[1768966279963,0.16559897,2972.7,2971.3,0.16846]
[1768966279964,0.16559897,2972.3,2971.1,3.04744997]
[1768966280666,0.33398897,2972.7,2971.5,1.08844997]
[1768966280872,0.16559897,2972.6,2971.5,1.08844997]
[1768966281070,0.16559897,2972.6,2971.3,1.08844997]
[1768966281071,0.16559897,2972.5,2971.3,1.08844997]
[1768966281270,0.16559897,2972.1,2971.1,1.959]
[1768966281469,0.16559897,2972.1,2970.9,4.45744997]
[1768966282774,0.16559897,2972.1,2971.1,1.08844997]
[1768966285382,0.16559897,2972.1,2970.9,4.45744997]
[1768966285576,0.16559897,2971.9,2970.7,1.08844997]
[1768966288185,0.16559897,2971.7,2970.7,1.08844997]
[1768966289894,0.16559897,2972.1,2971.3,1.08844997]
[1768966290091,0.16559897,2972.1,2970.9,1.08844997]
[1768966290092,0.16559897,2972.5,2971.7,1.08844997]
[1768966290291,0.16559897,2972.9,2971.9,1.08844997]
[1768966290998,0.16559897,2972.9,2972.3,1.08844997]
[1768966291202,0.00248929,2973.2,2972.3,1.08844997]
[1768966291499,0.00248929,2973.2,2972.5,1.08844997]
[1768966291893,0.00248929,2973.2,2972.1,1.08844997]
[1768966292093,0.16808826,2973.2,2972.1,1.08844997]
[1768966292893,0.16559897,2973.1,2971.9,1.08844997]
[1768966293096,0.16559897,2972.9,2971.7,1.08844997]
[1768966293290,1.08844997,2972.6,2971.3,1.08844997]
[1768966293502,0.16559897,2972.5,2971.3,1.08844997]
[1768966294608,0.16559897,2972.5,2971.5,1.08844997]
[1768966296604,0.16559897,2972.9,2971.7,1.08844997]
[1768966296802,0.00248929,2973.2,2972.3,1.08844997]
[1768966297004,0.16808826,2973.2,2972.3,1.08844997]
[1768966297204,0.16808826,2973.2,2972.1,1.08844997]
[1768966298696,0.16808826,2973.2,2972.3,1.08844997]
[1768966308713,0.16808826,2973.2,2972.1,1.08844997]
[1768966309412,0.16808826,2973.2,2972.3,1.08844997]
[1768966314407,0.16808826,2973.2,2971.8,1.08844997]
[1768966314408,0.16348844,2972.9,2971.8,1.08844997]
[1768966315604,0.16348844,2972.8,2971.6,1.08844997]
[1768966316609,0.16348844,2972.7,2971.6,1.08844997]
[1768966316807,0.16348844,2972.6,2971.4,1.08844997]
[1768966322617,0.16348844,2972.5,2971.4,1.08844997]
[1768966324120,0.16348844,2972.3,2971.0,1.958]
[1768966324419,0.16348844,2972.1,2971.0,1.958]
[1768966324619,0.16348844,2972.1,2971.1,1.08844997]
[1768966325220,0.16348844,2972.1,2971.3,1.08844997]
[1768966325516,0.33188844,2972.4,2971.3,1.08844997]
[1768966331526,0.16348844,2972.3,2971.1,1.08844997]
[1768966334317,0.16348844,2972.3,2971.3,1.08844997]
[1768966338725,0.16838,2972.9,2972.0,1.08844997]
[1768966338932,0.16838,2972.9,2971.6,1.08825211]
[1768966339125,0.16283777,2973.1,2971.6,1.1425901]
[1768966339521,0.00248929,2973.2,2971.9,1.08825211]
[1768966340220,0.00248929,2973.2,2971.9,1.14255982]
[1768966344737,0.00248929,2973.2,2971.9,1.08825211]
[1768966346634,0.00248929,2973.2,2971.9,1.1436727]
[1768966347737,0.16532706,2973.2,2971.7,0.16844]
[1768966348138,0.16532706,2973.2,2971.7,0.22447156]
[1768966349738,0.16532706,2973.2,2971.9,1.08825211]
[1768966350039,0.00248929,2973.2,2971.9,1.08825211]
[1768966352442,0.16532706,2973.2,2971.9,1.08825211]
[1768966359045,0.16532706,2973.2,2971.8,1.08825211]
[1768966360146,0.16532706,2973.2,2971.9,1.955]
[1768966367553,0.16532706,2973.2,2971.9,4.96760682]
[1768966368454,0.16532706,2973.2,2972.0,3.01260682]
[1768966374758,0.31026838,2973.1,2972.0,3.01260682]
[1768966375055,0.16302408,2972.9,2971.8,3.01260682]
[1768966375257,0.16302408,2972.9,2972.1,1.956]
[1768966381256,0.00248929,2973.2,2972.3,1.08825211]
[1768966381463,0.16832,2973.9,2972.7,1.08825211]
[1768966381664,0.31008209,2973.8,2972.7,3.50500354]
[1768966381960,0.16302408,2974.0,2972.7,3.50500354]
[1768966382161,0.3100738,2973.9,2972.7,1.08825211]
[1768966382350,0.00279239,2973.9,2972.7,3.50842375]
[1768966383367,0.00279239,2973.9,2972.7,1.09167232]
[1768966384964,0.16581647,2973.9,2972.7,1.09167232]
[1768966385163,0.16581647,2973.9,2972.7,3.50842375]
[1768966386861,0.16302408,2973.8,2972.7,0.00342021]
[1768966387267,0.16302408,2973.6,2972.7,0.00342021]
[1768966387961,0.33136408,2973.6,2972.7,0.00342021]
[1768966388161,0.16302408,2973.5,2972.7,0.00342021]
[1768966389270,0.16302408,2973.3,2972.0,1.955]
[1768966390163,0.16302408,2973.3,2972.0,1.95884434]
[1768966390370,0.16302408,2973.3,2972.0,0.00384434]
[1768966392968,0.16837,2973.0,2972.0,0.00384434]
[1768966393159,0.16302408,2972.9,2972.0,0.00384434]
[1768966396674,0.1792928,2973.3,2972.2,1.08825211]
[1768966397068,0.1792928,2973.3,2972.5,1.08825211]
[1768966397475,0.1792928,2973.3,2972.2,1.08825211]
[1768966397669,0.1792928,2973.3,2972.0,2.42059577]
[1768966398877,0.1792928,2973.3,2972.4,1.08792883]
[1768966408775,0.00279239,2973.9,2973.2,1.08792883]
[1768966408977,0.00279239,2973.9,2973.0,1.08792883]
[1768966409578,0.18208519,2973.9,2972.8,1.08792883]
[1768966414785,0.1792928,2973.3,2972.1,3.50468026]
[1768966414978,0.1792928,2973.3,2972.3,1.08792883]
[1768966418587,0.1792928,2973.3,2972.5,1.08792883]
[1768966422888,0.16834,2973.5,2972.7,1.08792883]
[1768966423085,0.00279239,2973.9,2972.7,1.08792883]
[1768966423086,0.00279239,2973.9,2973.1,1.08792883]
[1768966425488,0.16530246,2973.9,2972.7,2.41675143]
[1768966425690,0.16251007,2973.8,2972.7,3.50468026]
[1768966426197,0.16251007,2973.8,2972.9,1.08792883]
[1768966427586,0.16251007,2973.8,2972.8,1.08792883]
[1768966428700,0.16251007,2973.8,2972.6,1.08792883]
[1768966429901,0.16251007,2973.8,2972.8,1.08792883]
[1768966434903,0.16251007,2973.8,2973.0,1.08792883]
[1768966436306,0.00279239,2973.9,2973.0,1.08792883]
[1768966437197,0.00279239,2973.9,2972.7,2.41675143]
[1768966437198,0.00279239,2973.9,2973.2,1.08792883]
[1768966437404,0.00279239,2973.9,2973.4,1.08792883]
[1768966437710,0.16251007,2974.2,2973.4,1.08792883]
[1768966438301,0.16251007,2974.2,2973.2,1.08792883]
[1768966438496,0.00368989,2974.2,2973.4,1.08792883]
[1768966442207,0.00368989,2974.2,2973.6,1.08792883]
[1768966443703,0.16828,2974.5,2973.6,1.08792883]
[1768966444912,0.17191441,2974.5,2973.6,1.08792883]
[1768966445609,0.00363441,2974.5,2973.8,1.08792883]
[1768966445912,0.16251007,2975.0,2973.8,1.08792883]
[1768966446502,0.16251007,2975.0,2973.9,1.08792883]
[1768966446908,0.16634253,2975.0,2973.9,1.08792883]
[1768966449614,1.25427136,2975.0,2973.9,1.08792883]
[1768966449815,0.16251007,2974.9,2973.7,1.08792883]
[1768966451415,0.16251007,2974.7,2973.5,2.41675143]
[1768966451620,0.16251007,2974.5,2973.6,3.04092883]
[1768966452114,0.33077007,2974.9,2973.8,1.08792883]
[1768966452620,0.16251007,2974.8,2973.8,1.08792883]
[1768966456918,0.16251007,2974.8,2974.0,1.08792883]
[1768966457121,0.16823,2975.4,2974.6,1.08792883]
[1768966457519,0.16556998,2975.6,2974.6,1.08792883]
[1768966457823,0.16556998,2975.6,2974.8,1.08792883]
[1768966458222,0.16848777,2975.6,2974.8,1.09128521]
[1768966459024,0.16848777,2975.6,2974.8,0.00335638]
[1768966470631,0.16556998,2976.0,2974.9,1.0863081]
[1768966471132,0.16556998,2976.0,2974.8,0.00335638]
[1768966471931,0.16556998,2975.8,2974.1,2.40183118]
[1768966472132,0.16556998,2975.6,2974.0,3.0373081]
[1768966472332,0.16556998,2975.6,2974.0,5.43913928]
[1768966473027,0.16556998,2975.6,2974.0,5.44217008]
[1768966473229,0.16556998,2975.6,2974.1,2.40183118]
[1768966473830,0.16556998,2975.6,2974.1,1.951]
[1768966475436,0.16556998,2975.6,2974.1,4.35283118]
[1768966476739,0.16556998,2975.6,2974.3,1.0863081]